bitfinex-derivatives/quotes_BNBF0:USTF0_20250603
["timestamp","ask_amount","ask_price","bid_price","bid_amount"]
[1748960990634,2.25367833,665.77,665.07,1.51845968]
[1748960990837,2.25367833,665.78,665.08,1.03914457]
[1748960991033,2.25367833,665.78,665.05,0.47931511]
[1748960991235,2.25367833,665.77,665.06,1.039056]
[1748960991436,2.25367833,665.77,665.07,1.039056]
[1748960991636,2.25367833,665.78,665.04,0.47931511]
[1748960991837,2.25367833,665.78,665.05,1.51827525]
[1748960992041,2.25367833,665.78,665.06,1.03896014]
[1748960992242,2.25367833,665.78,665.04,0.47931511]
[1748960992438,2.25367833,665.78,665.05,1.03896007]
[1748960992643,2.25367833,665.78,665.06,1.03896007]
[1748960992838,2.25367833,665.78,665.04,0.47931511]
[1748960993043,2.25367833,665.78,665.05,1.03887484]
[1748960993242,2.25367833,665.78,665.06,1.03887484]
[1748960993439,2.25367833,665.77,665.07,0.47931511]
[1748960993642,2.25367833,665.77,665.08,0.47931511]
[1748960993841,2.25367833,665.77,665.07,0.47931511]
[1748960994144,2.25367833,665.82,664.99,0.3007564]
[1748960994342,2.25367833,665.84,665.0,1.03879701]
[1748960994542,0.30019662,666.23,665.01,1.33954436]
[1748960994543,2.25367833,665.85,665.01,1.33954436]
[1748960994744,2.25367833,665.85,665.02,1.33953984]
[1748960994944,2.25367833,665.85,665.03,1.03879701]
[1748960995240,2.25367833,665.85,665.04,1.03879701]
[1748960995447,2.25367833,665.85,665.05,1.03879701]
[1748960995745,2.25367833,665.85,665.06,1.03879701]
[1748960995941,2.25367833,665.85,665.02,0.30074283]
[1748960996141,2.25367833,665.85,665.03,1.03866368]
[1748960996347,2.25367833,665.85,665.04,1.03866368]
[1748960996546,2.25367833,665.84,665.05,1.03866368]
[1748960996746,2.25367833,665.84,665.03,0.30073831]
[1748960996747,2.25367833,665.84,665.06,1.03866368]
[1748960996948,2.25367833,665.84,665.03,0.30073831]
[1748960997141,2.25367833,666.02,665.04,1.03860902]
[1748960997346,2.25367833,666.03,665.05,1.33933828]
[1748960997545,2.25367833,666.03,665.06,1.33933376]
[1748960997745,2.25367833,666.03,665.07,1.33932924]
[1748960997942,2.25367833,666.03,665.08,0.3007157]
[1748960998243,2.25367833,666.03,665.09,1.03780538]
[1748960998442,2.25367833,666.03,665.1,1.03780538]
[1748960998642,2.25367833,666.03,665.11,1.03780538]
[1748960998842,2.25367833,666.05,665.12,1.03769875]
[1748960999047,2.25367833,666.05,665.09,0.30071118]
[1748960999346,2.25367833,666.05,665.1,1.03769787]
[1748960999549,2.25367833,666.05,665.11,1.03769787]
[1748960999846,2.25367833,666.06,665.12,1.03769787]
[1748961000042,2.25367833,666.06,665.09,0.30071118]
[1748961000247,2.25367833,666.06,665.1,1.03759766]
[1748961000443,2.25367833,666.05,665.11,1.03759766]
[1748961000646,2.25367833,666.05,665.12,1.03759766]
[1748961000845,2.25367833,666.05,665.09,0.30071118]
[1748961001043,2.25367833,666.04,665.1,1.03758014]
[1748961001246,2.25367833,666.05,665.11,1.03758014]
[1748961001449,2.25367833,666.05,665.12,1.03758014]
[1748961001645,2.25367833,666.05,665.09,0.30071118]
[1748961001843,0.30019662,666.23,665.09,0.30071118]
[1748961001844,2.25367833,666.06,665.1,1.03757845]
[1748961002045,2.25367833,666.06,665.11,1.03757845]
[1748961002250,2.25367833,666.06,665.12,1.03757845]
[1748961002448,2.25367833,666.06,665.09,0.30071118]
[1748961002746,2.25367833,666.06,665.1,1.03678382]
[1748961002945,2.25367833,666.06,665.11,1.03678382]
[1748961003145,2.25367833,666.06,665.12,1.03678382]
[1748961003346,2.25367833,666.06,665.09,0.30071118]
[1748961003547,2.25367833,666.06,665.1,1.036579]
[1748961003753,2.25367833,666.06,665.11,1.036579]
[1748961003949,2.25367833,666.06,665.12,1.036579]
[1748961004151,2.25367833,666.04,665.09,0.30071118]
[1748961004352,2.25367833,666.06,665.1,1.0365279]
[1748961004650,2.25367833,666.06,665.11,1.0365279]
[1748961004852,2.25367833,666.06,665.09,0.30071118]
[1748961005151,2.25367833,666.06,665.1,1.03648191]
[1748961005351,2.25367833,666.06,665.11,1.03648191]
[1748961005548,2.25367833,666.06,665.09,0.30071118]
[1748961005851,2.25367833,666.06,665.1,1.03645156]
[1748961006150,2.25367833,666.06,665.11,1.03645156]
[1748961006351,2.25367833,666.06,665.09,0.30071118]
[1748961006652,2.25367833,666.06,665.1,1.03645311]
[1748961006950,2.25367833,665.94,665.09,0.30071118]
[1748961007249,2.25367833,665.93,665.1,1.03644837]
[1748961007448,2.25367833,665.93,665.09,0.30071118]
[1748961008045,2.25367833,665.92,665.1,0.47931511]
[1748961008246,2.25367833,665.9,665.13,0.47931511]
[1748961008644,2.25367833,665.9,665.16,0.47931511]
[1748961008849,2.25367833,665.89,665.16,0.47931511]
[1748961009044,2.25367833,665.91,665.14,0.47931511]
[1748961009752,2.25367833,665.9,665.15,0.47931511]
[1748961010449,2.25367833,665.94,665.15,0.47931511]
[1748961010652,2.25367833,665.9,665.09,0.30071118]
[1748961010852,2.25367833,665.89,665.09,0.30071118]
[1748961011252,0.30019662,666.23,665.09,0.30071118]
[1748961011253,2.25367833,665.88,665.09,0.30071118]
[1748961011451,2.25367833,665.87,665.09,0.30071118]
[1748961011852,0.30019662,666.23,665.09,0.30071118]
[1748961011853,2.25367833,665.85,665.09,0.30071118]
[1748961013555,2.25367833,665.86,665.09,0.30071118]
[1748961013755,2.25367833,665.87,665.09,0.30071118]
[1748961014056,2.25367833,665.88,665.09,0.30071118]
[1748961014453,2.25367833,665.87,665.09,0.30071118]
[1748961014859,2.25367833,665.86,665.09,0.30071118]
[1748961015058,2.25367833,665.7,665.11,0.47931511]
[1748961015756,2.25367833,665.7,665.09,0.30071118]
[1748961015757,2.25367833,665.7,665.1,0.47931511]
[1748961016059,2.25367833,665.69,665.1,0.47931511]
[1748961016559,2.25367833,665.68,665.11,0.47931511]
[1748961016759,2.25367833,665.68,665.09,0.30071118]
[1748961016760,2.25367833,665.68,665.1,0.47931511]
[1748961017261,2.25367833,665.69,665.09,0.78002629]
[1748961017762,2.25367833,665.69,665.09,0.30071118]
[1748961017956,2.25367833,665.68,665.09,0.30071118]
[1748961018661,0.30019662,666.23,665.09,0.30071118]
[1748961018662,2.25367833,665.77,665.09,0.30071118]
[1748961019362,2.25367833,665.74,665.09,0.30071118]
[1748961019562,2.25367833,665.73,665.09,0.30071118]
[1748961019956,2.25367833,665.75,665.09,0.30071118]
[1748961020157,2.25367833,665.74,665.09,0.30071118]
[1748961021264,2.25367833,665.75,665.09,0.30071118]
[1748961022660,2.25367833,665.74,665.09,0.30071118]
[1748961023661,2.25367833,665.65,665.09,0.30071118]
[1748961026664,2.25367833,665.64,665.09,0.30071118]
[1748961027169,2.25367833,665.65,665.09,0.30071118]
[1748961027669,2.25367833,665.61,665.09,0.78002629]
[1748961028170,2.25367833,665.58,665.18,0.47931511]
[1748961028471,2.25367833,665.58,665.14,0.47931511]
[1748961028773,2.25367833,665.57,665.13,0.47931511]
[1748961028973,2.25367833,665.57,665.15,0.47931511]
[1748961029171,2.25367833,665.61,665.22,0.47931511]
[1748961029466,2.25367833,665.6,665.23,0.47931511]
[1748961029870,2.25367833,665.6,665.2,0.47931511]
[1748961030172,2.25367833,665.64,665.15,0.47931511]
[1748961030372,2.25367833,665.67,665.09,0.78002629]
[1748961030573,2.25367833,665.66,665.12,0.47931511]
[1748961031373,2.25367833,665.6,665.21,0.47931511]
[1748961031570,2.25367833,665.6,665.2,0.47931511]
[1748961031776,2.25367833,665.61,665.22,0.47931511]
[1748961031971,3.74162656,666.09,665.09,0.30071118]
[1748961031972,2.25367833,665.8,665.09,0.30071118]
[1748961032769,2.25367833,665.81,665.09,0.30071118]
[1748961032966,2.25367833,665.66,665.09,0.30071118]
[1748961033173,2.25367833,665.66,665.17,0.47931511]
[1748961033367,2.25367833,665.66,665.16,0.47931511]
[1748961033572,2.25367833,665.66,665.17,0.47931511]
[1748961033774,3.74162656,666.19,665.17,0.47931511]
[1748961033775,2.25367833,665.65,665.17,0.47931511]
[1748961033972,2.25367833,665.6,665.13,0.47931511]
[1748961034168,2.25367833,665.6,665.12,0.47931511]
[1748961034373,2.25367833,665.59,665.11,0.47931511]
[1748961034770,2.25367833,665.54,665.23,0.47931511]
[1748961034970,2.25367833,665.54,665.25,0.47931511]
[1748961035368,2.25367833,665.54,665.26,0.47931511]
[1748961036872,2.25367833,665.54,665.27,0.47931511]
[1748961037271,2.25367833,665.54,665.26,0.47931511]
[1748961037675,2.25367833,665.54,665.27,0.47931511]
[1748961038470,2.25367833,665.62,665.11,0.47931511]
[1748961038668,2.25367833,665.62,665.12,0.47931511]
[1748961039871,2.25367833,665.63,665.09,0.30071118]
[1748961040077,2.25367833,665.63,665.09,0.78002629]
[1748961040578,2.25367833,665.63,665.1,0.47931511]
[1748961040779,2.25367833,665.64,665.1,0.47931511]
[1748961040978,2.25367833,665.65,665.09,0.30071118]
[1748961041175,2.25367833,665.67,665.09,0.30071118]
[1748961041680,2.25367833,665.67,665.09,0.78002629]
[1748961042080,2.25367833,665.68,665.09,0.78002629]
[1748961042280,2.25367833,665.71,665.1,1.04112839]
[1748961042476,2.25367833,665.75,665.09,0.30071118]
[1748961042684,2.25367833,665.73,665.21,0.47931511]
[1748961042982,2.25367833,665.74,665.25,0.47931511]
[1748961043180,2.25367833,665.75,665.27,0.47931511]
[1748961043582,2.25367833,665.76,665.27,0.47931511]
[1748961043877,2.25367833,665.77,665.28,0.47931511]
[1748961044477,2.25367833,665.82,665.28,0.47931511]
[1748961044683,2.25367833,665.82,665.18,0.47931511]
[1748961045684,2.25367833,665.82,665.17,0.47931511]
[1748961046483,2.25367833,665.82,665.19,0.47931511]
[1748961046683,2.25367833,665.82,665.09,0.30071118]
[1748961046684,2.25367833,665.86,665.13,0.47931511]
[1748961046880,2.25367833,665.86,665.14,1.04186729]
[1748961047185,2.25367833,665.85,665.15,1.04186729]
[1748961047379,2.25367833,665.85,665.16,1.04186729]
[1748961047581,2.25367833,665.85,665.17,1.04186729]
[1748961047781,2.25367833,665.86,665.18,1.04186729]
[1748961047985,2.25367833,665.86,665.1,0.47931511]
[1748961048181,2.25367833,665.86,665.11,1.04182943]
[1748961048382,2.25367833,665.91,665.12,1.04182943]
[1748961048585,2.25367833,665.91,665.13,1.04182943]
[1748961048779,2.25367833,665.91,665.14,1.04182943]
[1748961048984,2.25367833,665.91,665.15,1.04182943]
[1748961049181,2.25367833,665.92,665.16,1.04182943]
[1748961049487,2.25367833,665.93,665.17,1.04182943]
[1748961049687,2.25367833,665.93,665.18,1.04182943]
[1748961049886,2.25367833,665.9,665.19,1.04182943]
[1748961050083,2.25367833,665.91,665.2,1.04182943]
[1748961050287,3.74162656,666.55,665.21,1.04182943]
[1748961050288,2.25367833,665.93,665.21,1.04182943]
[1748961050487,2.25367833,665.93,665.22,1.04182943]
[1748961050682,2.25367833,665.94,665.09,0.30071118]
[1748961050880,2.25367833,665.95,665.1,1.78566449]
[1748961051081,2.25367833,665.95,665.11,2.08635926]
[1748961051380,2.25367833,665.94,665.12,1.04167705]
[1748961051587,2.25367833,665.94,665.13,1.04167705]
[1748961051887,2.25367833,665.95,665.14,1.04167705]
[1748961052087,2.25367833,665.96,665.15,1.04167705]
[1748961052386,2.25367833,665.94,665.16,1.0415274]
[1748961052589,2.25367833,665.94,665.17,1.0415274]
[1748961052789,2.25367833,665.94,665.18,1.0415274]
[1748961052986,2.25367833,665.93,665.19,1.0415274]
[1748961053186,2.25367833,665.94,665.2,1.0415274]
[1748961053487,2.25367833,665.94,665.21,1.0415274]
[1748961053787,2.25367833,665.94,665.22,1.0415274]
[1748961053987,2.25367833,665.94,665.23,1.0415274]
[1748961054288,2.25367833,665.94,665.11,0.78001724]
[1748961054582,2.25367833,665.94,665.12,1.34197646]
[1748961054781,2.25367833,665.94,665.13,2.08593901]
[1748961054980,2.25367833,665.94,665.14,2.08593402]
[1748961055181,2.25367833,665.94,665.15,1.3419629]
[1748961055382,2.25367833,665.94,665.16,1.34195838]
[1748961055584,2.25367833,665.95,665.17,1.34195386]
[1748961055784,2.25367833,665.95,665.18,1.04127885]
[1748961055984,2.25367833,665.95,665.19,1.04127885]
[1748961056183,2.25367833,665.95,665.2,1.04103818]
[1748961056389,3.74162656,666.58,665.17,0.30067501]
[1748961056390,2.25367833,665.93,665.21,1.04103818]
[1748961056684,5.23827718,666.8,665.22,1.04103818]
[1748961056685,2.25367833,665.95,665.22,1.04103818]
[1748961056887,2.25367833,665.95,665.23,1.04103818]
[1748961057088,2.25367833,665.95,665.24,1.04103818]
[1748961057289,2.25367833,665.95,665.19,0.47931511]
[1748961057489,2.25367833,665.95,665.2,1.04083153]
[1748961057788,2.25367833,665.95,665.21,1.04083153]
[1748961057990,2.25367833,665.94,665.37,0.47931511]
[1748961058582,2.25367833,665.95,665.36,0.47931511]
[1748961058884,2.25367833,666.0,665.35,0.47931511]
[1748961059088,2.25367833,666.0,665.17,0.30067501]
[1748961059089,2.25367833,666.0,665.36,0.47931511]
[1748961059591,2.25367833,666.01,665.37,0.47931511]
[1748961059886,3.74162656,666.55,665.3,0.47931511]
[1748961059887,2.25367833,666.07,665.3,0.47931511]
[1748961060091,2.25367833,666.07,665.31,1.03998734]
[1748961060286,2.25367833,666.09,665.33,0.47931511]
[1748961060489,2.25367833,666.09,665.36,0.47931511]
[1748961060689,2.25367833,666.09,665.37,1.51930245]
[1748961060987,2.25367833,666.09,665.37,0.47931511]
[1748961061390,2.25367833,666.1,665.38,1.51879443]
[1748961061586,2.25367833,666.11,665.38,0.47931511]
[1748961061788,2.25367833,666.1,665.33,0.47931511]
[1748961061993,2.25367833,666.09,665.34,1.03909294]
[1748961062289,2.25367833,666.06,665.41,0.47931511]
[1748961062491,2.25367833,666.06,665.4,0.47931511]
[1748961062687,2.25367833,666.05,665.4,0.47931511]
[1748961062887,2.25367833,666.07,665.42,0.47931511]
[1748961063192,2.25367833,666.06,665.42,0.47931511]
[1748961063394,2.25367833,666.06,665.41,0.47931511]
[1748961063694,2.25367833,666.08,665.37,0.47931511]
[1748961063993,2.25367833,666.09,665.39,0.47931511]
[1748961064395,2.25367833,666.22,665.18,0.47931511]
[1748961064593,2.25367833,666.24,665.2,0.47931511]
[1748961064795,2.25367833,666.24,665.21,1.8178633]
[1748961064993,2.25367833,666.24,665.22,1.33854367]
[1748961065193,2.25367833,666.24,665.23,1.33853915]
[1748961065490,2.25367833,666.26,665.26,0.47931511]
[1748961065690,2.25367833,666.25,665.27,1.33852107]
[1748961065891,2.25367833,666.25,665.28,1.33851656]
[1748961066193,2.25367833,666.25,665.29,1.33851204]
[1748961066391,2.25367833,666.25,665.3,1.33850752]
[1748961066589,2.25367833,666.25,665.31,1.338503]
[1748961066788,2.25367833,666.27,665.32,1.03789126]
[1748961066992,2.25367833,666.28,665.33,1.03789126]
[1748961067188,2.25367833,666.28,665.34,1.03789126]
[1748961067389,2.25367833,666.28,665.35,1.03789126]
[1748961067594,3.74162656,666.92,665.31,0.77992685]
[1748961067595,2.25367833,666.3,665.36,1.03789126]
[1748961067899,2.25367833,666.49,665.37,1.03689743]
[1748961068095,2.25367833,666.49,665.38,1.03689743]
[1748961068395,2.25367833,666.49,665.39,1.03689743]
[1748961068595,3.74162656,667.36,665.31,0.30061174]
[1748961068596,2.25367833,666.51,665.31,0.30061174]
[1748961068904,2.25367833,666.51,665.32,1.03666545]
[1748961069090,2.25367833,666.51,665.31,0.30061174]
[1748961069091,2.25367833,666.51,665.33,1.03666545]
[1748961069296,2.25367833,666.51,665.34,1.03666545]
[1748961069499,2.25367833,666.52,665.35,1.03666545]
[1748961069797,2.25367833,666.52,665.36,1.03666545]
[1748961069997,2.25367833,666.53,665.37,1.03666545]
[1748961070197,2.25367833,666.53,665.38,1.03666545]
[1748961070396,2.25367833,666.53,665.39,1.03666545]
[1748961070591,2.25367833,666.55,665.31,0.30061174]
[1748961070796,2.25367833,666.55,665.32,1.03627636]
[1748961070998,2.25367833,666.55,665.07,0.47931511]
[1748961070999,2.25367833,666.54,665.33,1.33691421]
[1748961071191,2.25367833,666.54,665.34,1.3369097]
[1748961071392,2.25367833,666.54,665.35,1.33690518]
[1748961071594,2.25367833,666.55,665.36,1.33690066]
[1748961071796,2.25367833,666.55,665.37,1.03631151]
[1748961071997,2.25367833,666.55,665.38,1.03631151]
[1748961072298,2.25367833,666.55,665.39,1.03631151]
[1748961072499,2.25367833,666.56,665.38,0.30058011]
[1748961072699,2.25367833,666.56,665.39,1.03584648]
[1748961072900,2.25367833,666.56,665.38,0.30058011]
[1748961073095,2.25367833,666.53,665.38,0.30058011]
[1748961073506,2.25367833,666.54,665.38,0.30058011]
[1748961074601,5.23827718,667.8,665.38,0.30058011]
[1748961074602,2.25367833,666.55,665.38,0.30058011]
[1748961076000,2.25367833,666.3,665.38,0.30058011]
[1748961076197,2.25367833,666.3,665.79,0.47931511]
[1748961076503,2.25367833,666.3,665.38,0.30058011]
[1748961076504,2.25367833,666.3,665.82,0.47931511]
[1748961076705,2.25367833,666.3,665.84,0.47931511]
[1748961077603,2.25367833,666.3,665.87,0.47931511]
[1748961078104,2.25367833,666.3,665.86,0.47931511]
[1748961078404,5.23827718,667.1,665.81,0.47931511]
[1748961078405,2.25367833,666.34,665.81,0.47931511]
[1748961078699,2.25367833,666.34,665.82,0.47931511]
[1748961078905,2.25367833,666.33,665.82,0.47931511]
[1748961079102,2.25367833,666.33,665.83,0.47931511]
[1748961079298,2.25367833,666.35,665.76,0.47931511]
[1748961079497,2.25367833,666.34,665.76,0.47931511]
[1748961079705,2.25367833,666.34,665.77,0.47931511]
[1748961080101,2.25367833,666.35,665.77,0.47931511]
[1748961080297,2.25367833,666.3,665.76,0.47931511]
[1748961080499,2.25367833,666.28,665.79,0.47931511]
[1748961080704,2.25367833,666.28,665.8,0.47931511]
[1748961081101,2.25367833,666.28,665.79,0.47931511]
[1748961081402,2.25367833,666.23,665.79,0.47931511]
[1748961081606,2.25367833,666.23,665.8,0.47931511]
[1748961082299,2.25367833,666.25,665.8,0.47931511]
[1748961082598,2.25367833,666.19,665.8,0.47931511]
[1748961082805,2.25367833,666.19,665.97,0.47931511]
[1748961083500,2.25367833,666.2,665.98,0.47931511]
[1748961083703,3.74162656,666.67,665.98,0.47931511]
[1748961083704,2.25367833,666.19,665.98,0.47931511]
[1748961083904,2.25367833,666.2,665.98,0.47931511]
[1748961084105,2.25367833,666.19,665.98,0.47931511]
[1748961084704,2.25367833,666.19,665.99,0.47931511]
[1748961084902,2.25367833,666.18,665.97,0.47931511]
[1748961085205,2.25367833,666.17,665.95,0.47931511]
[1748961085400,2.25367833,666.22,665.91,0.47931511]
[1748961085601,2.25367833,666.22,665.92,0.47931511]
[1748961085807,2.25367833,666.22,665.91,0.47931511]
[1748961086708,2.25367833,666.21,665.91,0.47931511]
[1748961086905,3.74162656,666.75,665.91,0.47931511]
[1748961087208,3.74162656,666.74,665.91,0.47931511]
[1748961087604,3.74162656,666.73,665.9,0.47931511]
[1748961087805,3.74162656,666.73,665.91,0.47931511]
[1748961088206,3.74162656,666.72,665.91,0.47931511]
[1748961088907,3.74162656,666.71,665.91,0.47931511]
[1748961089106,3.74162656,666.71,665.95,0.47931511]
[1748961089503,3.74162656,666.67,665.95,0.47931511]
[1748961090102,3.74162656,666.67,665.96,0.47931511]
[1748961090307,3.74162656,666.68,665.96,0.47931511]
[1748961090704,3.74162656,666.67,665.97,0.47931511]
[1748961091402,3.74162656,666.66,665.96,0.47931511]
[1748961091607,3.74162656,666.66,665.93,0.47931511]
[1748961091808,3.74162656,666.66,665.55,0.47931511]
[1748961091809,3.74162656,667.15,666.39,0.47931511]
[1748961092005,0.29978715,667.14,666.16,0.47931511]
[1748961092202,0.29978715,667.14,665.92,0.47931511]
[1748961092402,0.29978715,667.14,665.42,0.47931511]
[1748961092602,0.29978715,667.14,665.43,1.81733277]
[1748961092806,0.29978715,667.14,665.44,1.33801314]
[1748961093008,0.29978715,667.14,665.44,0.30055301]
[1748961093203,0.29978715,667.14,665.7,0.47931511]
[1748961093505,3.74162656,667.09,665.72,0.47931511]
[1748961093705,0.2998186,667.07,665.67,0.47931511]
[1748961093911,0.2998186,667.07,665.71,0.47931511]
[1748961094409,3.74162656,667.06,665.71,0.47931511]
[1748961094709,0.29983209,667.04,665.44,0.30055301]
[1748961099415,0.29983209,667.04,665.44,0.77986812]
[1748961099816,3.74162656,666.93,665.44,0.77986812]
[1748961100015,0.29988604,666.92,665.44,0.77986812]
[1748961100416,0.29988604,666.92,665.45,0.47931511]
[1748961100616,0.29988604,666.92,665.44,0.30055301]
[1748961100814,3.74162656,666.91,665.44,0.30055301]
[1748961101013,0.29989503,666.9,665.44,0.30055301]
[1748961102715,4.04152159,666.9,665.44,0.30055301]
[1748961103126,4.04152159,666.9,665.48,0.47931511]
[1748961103721,3.74162656,666.75,665.48,0.47931511]
[1748961104318,3.74162656,666.75,665.44,0.77986812]
[1748961104518,3.74162656,666.73,665.46,0.47931511]
[1748961104720,3.74162656,666.73,665.49,0.47931511]
[1748961104918,3.74162656,666.73,665.53,0.47931511]
[1748961105123,3.74162656,666.65,665.48,0.47931511]
[1748961105316,3.74162656,666.65,665.49,0.47931511]
[1748961105518,3.74162656,666.73,665.44,0.77986812]
[1748961105722,3.74162656,666.73,665.45,0.47931511]
[1748961105921,3.74162656,666.69,665.44,0.77986812]
[1748961106119,3.74162656,666.69,665.45,0.47931511]
[1748961106322,3.74162656,666.7,665.46,0.47931511]
[1748961106523,2.2446838,666.08,665.47,0.47931511]
[1748961106722,2.2446838,666.07,665.47,0.47931511]
[1748961106919,2.2446838,666.07,665.46,0.47931511]
[1748961107826,2.2446838,666.06,665.46,0.47931511]
[1748961108519,2.2446838,666.05,665.46,0.47931511]
[1748961108721,2.2446838,666.05,665.47,0.47931511]
[1748961109728,2.2446838,666.02,665.52,0.47931511]
[1748961110623,2.2446838,666.01,665.52,0.47931511]
[1748961110828,2.2446838,666.0,665.49,0.47931511]
[1748961111226,2.2446838,666.02,665.49,0.47931511]
[1748961111529,2.2446838,666.01,665.5,0.47931511]
[1748961111729,2.2446838,666.0,665.49,0.47931511]
[1748961112728,2.2446838,665.99,665.47,0.47931511]
[1748961113628,2.2446838,665.98,665.46,0.47931511]
[1748961114531,2.2446838,665.97,665.46,0.47931511]
[1748961114830,2.2446838,665.99,665.47,0.47931511]
[1748961115027,2.2446838,665.96,665.5,0.47931511]
[1748961115330,5.23827718,666.86,665.44,0.30055301]
[1748961115331,2.2446838,665.95,665.56,0.47931511]
[1748961115530,2.2446838,665.93,665.56,0.47931511]
[1748961115826,2.2446838,665.93,665.58,0.47931511]
[1748961116830,2.2446838,665.91,665.6,0.47931511]
[1748961117231,2.2446838,665.91,665.59,0.47931511]
[1748961117431,2.2446838,665.91,665.6,0.47931511]
[1748961119328,2.2446838,665.9,665.6,0.47931511]
[1748961119532,5.23827718,666.67,665.44,0.30055301]
[1748961119533,2.2446838,666.15,665.44,0.30055301]
[1748961119832,2.2446838,666.16,665.44,0.30055301]
[1748961120032,2.2446838,666.16,665.45,1.04262013]
[1748961120233,2.2446838,666.16,665.44,0.30055301]
[1748961120434,2.2446838,666.16,665.45,1.0426179]
[1748961120633,2.2446838,666.16,665.46,1.04260442]
[1748961120830,0.29989503,666.9,665.44,0.30055301]
[1748961120831,2.2446838,666.28,665.47,1.04260442]
[1748961121034,2.2446838,666.29,665.48,1.04260442]
[1748961121235,2.2446838,666.32,665.49,1.04260442]
[1748961121430,2.2446838,666.31,665.5,1.04260442]
[1748961121634,2.2446838,666.32,665.51,1.04260442]
[1748961121835,2.2446838,666.32,665.52,1.04260442]
[1748961122032,2.2446838,666.33,665.53,1.04260442]
[1748961122233,2.2446838,666.33,665.54,1.0418999]
[1748961122430,2.2446838,666.33,665.55,1.0418999]
[1748961122735,0.29989503,666.9,665.56,1.0418999]
[1748961122736,2.2446838,666.34,665.56,1.0418999]
[1748961122938,2.2446838,666.34,665.57,1.04175667]
[1748961123232,2.2446838,666.36,665.44,0.30055301]
[1748961123438,2.2446838,666.35,665.45,1.04155917]
[1748961123637,2.2446838,666.35,665.46,1.04155917]
[1748961123839,2.2446838,666.35,665.47,1.04155917]
[1748961124041,2.2446838,666.35,665.48,1.04155917]
[1748961124234,2.2446838,666.36,665.49,1.04155917]
[1748961124438,2.2446838,666.21,665.5,1.04155917]
[1748961124637,2.2446838,666.21,665.51,1.04155917]
[1748961124836,2.2446838,666.21,665.52,1.04155917]
[1748961125040,2.2446838,666.21,665.53,1.04155917]
[1748961125241,2.2446838,666.23,665.54,1.04155917]
[1748961125437,2.2446838,666.23,665.55,1.04155917]
[1748961125641,2.2446838,666.24,665.56,1.04155917]
[1748961125840,2.2446838,666.24,665.57,1.04155917]
[1748961126041,2.2446838,666.24,665.58,1.04034605]
[1748961126241,2.2446838,666.24,665.59,1.04034605]
[1748961126541,2.2446838,666.24,665.6,1.04034605]
[1748961126743,2.2446838,666.24,665.45,0.47931511]
[1748961127037,2.2446838,666.24,665.46,1.04026303]
[1748961127236,2.2446838,666.24,665.47,1.04026303]
[1748961127442,2.2446838,666.24,665.48,1.04026303]
[1748961127638,2.2446838,666.24,665.44,0.77986812]
[1748961127639,2.2446838,666.14,665.66,0.47931511]
[1748961128244,2.2446838,666.14,665.65,0.47931511]
[1748961128942,3.74162656,666.69,665.65,0.47931511]
[1748961128943,2.2446838,666.18,665.65,0.47931511]
[1748961129143,2.2446838,666.18,665.56,0.47931511]
[1748961129339,2.2446838,666.18,665.57,1.03977309]
[1748961129539,2.2446838,666.18,665.58,1.03977309]
[1748961129741,2.2446838,666.18,665.57,0.47931511]
[1748961129942,2.2446838,666.18,665.58,1.03974586]
[1748961130140,2.2446838,666.17,665.56,0.47931511]
[1748961130340,2.2446838,666.18,665.52,0.47931511]
[1748961130544,2.2446838,666.19,665.53,1.03962256]
[1748961130741,2.2446838,666.19,665.54,1.03962256]
[1748961130940,0.29989503,666.9,665.55,1.03962256]
[1748961130941,2.2446838,666.2,665.55,1.03962256]
[1748961131143,2.2446838,666.2,665.56,1.03962256]
[1748961131339,2.2446838,666.17,665.53,0.47931511]
[1748961131641,2.2446838,666.17,665.54,1.03961862]
[1748961131845,2.2446838,666.17,665.52,0.47931511]
[1748961131846,2.2446838,666.17,665.55,1.03961862]
[1748961132047,2.2446838,666.17,665.52,0.47931511]
[1748961132242,2.2446838,666.19,665.53,1.0396105]
[1748961132442,2.2446838,666.19,665.54,1.0396105]
[1748961132645,2.2446838,666.2,665.55,1.0396105]
[1748961132844,2.2446838,666.2,665.47,0.47931511]
[1748961133046,2.2446838,666.2,665.48,1.03951742]
[1748961133247,2.2446838,666.2,665.49,1.03951742]
[1748961133443,2.2446838,666.2,665.5,1.03951742]
[1748961133646,2.2446838,666.2,665.47,0.47931511]
[1748961133943,2.2446838,666.2,665.48,1.0394303]
[1748961134143,2.2446838,666.2,665.49,1.0394303]
[1748961134349,2.2446838,666.2,665.44,0.30055301]
[1748961134350,2.2446838,666.18,665.52,0.47931511]
[1748961134549,2.2446838,666.18,665.53,1.0394303]
[1748961134750,2.2446838,666.18,665.54,1.0394303]
[1748961135048,2.2446838,666.18,665.52,0.47931511]
[1748961135250,2.2446838,666.18,665.53,1.03955494]
[1748961135450,2.2446838,666.18,665.54,1.03955494]
[1748961135652,2.2446838,666.18,665.52,0.47931511]
[1748961135850,2.2446838,666.18,665.53,1.039717]
[1748961136046,2.2446838,666.18,665.54,1.039717]
[1748961136251,2.2446838,666.18,665.52,0.47931511]
[1748961136447,2.2446838,666.18,665.53,1.03976715]
[1748961136649,2.2446838,666.19,665.54,1.03976715]
[1748961136849,2.2446838,666.19,665.51,0.47931511]
[1748961137046,2.2446838,666.19,665.52,1.03980826]